fUSD/lending_fUSD_20260515
["ID","MTS","AMOUNT","RATE_DAILY","PERIOD"]
[422324986,1778824233000,-196.45945032,0.0001093,2]
[422324992,1778824233000,-609.16,0.00011174,2]
[422324994,1778824233000,-155.17,0.00011521,2]
[422325015,1778824233000,-13269.79388854,0.00012197,2]
[422325011,1778824233000,-511.13281716,0.00012196,3]
[422325018,1778824233000,-8030.0,0.00012197,2]
[422325013,1778824233000,-370.958,0.00012196,2]
[422325007,1778824233000,-151.0,0.00012194,2]
[422325005,1778824233000,-558.69530803,0.00012097,2]
[422325000,1778824233000,-39680.04,0.00012097,2]
[422324996,1778824233000,-155.17,0.00012011,2]
[422325009,1778824233000,-150.0,0.00012195,2]
[422324997,1778824233000,-300.0,0.00012094,2]
[422324999,1778824233000,-5000.0,0.00012097,2]
[422324995,1778824233000,-196.7,0.000116,2]
[422324993,1778824233000,-2000.0,0.00011314,2]
[422325003,1778824233000,-7541.52632714,0.00012097,2]
[422324991,1778824233000,-200.0,0.00011121,2]
[422325001,1778824233000,-3271.26657969,0.00012097,2]
[422324998,1778824233000,-500.0,0.00012096,2]
[422325036,1778824237000,-214.997284,0.00012371,2]
[422325038,1778824237000,-2411.03,0.00012408,2]
[422325039,1778824237000,-466.58715,0.00012408,2]
[422325037,1778824237000,-1774.1899625,0.00012408,2]
[422325035,1778824237000,-208.38824723,0.00012371,2]
[422325031,1778824237000,-614.75134944,0.00012197,2]
[422325033,1778824237000,-169.88,0.00012329,2]
[422325032,1778824237000,-1654.443,0.00012197,2]
[422325030,1778824237000,-10995.908578,0.00012197,2]
[422325029,1778824237000,-265.19548402,0.00012197,2]
[422325042,1778824237000,-1611.46655198,0.00012497,2]
[422325034,1778824237000,-160.0,0.00012371,2]
[422325041,1778824237000,-1659.80002764,0.00012497,2]
[422325053,1778824237000,-292.399994,0.00012898,2]
[422325043,1778824237000,-23.91083263,0.00012564,2]
[422325054,1778824237000,-1354.27915297,0.00012898,2]
[422325055,1778824237000,-7541.52632709,0.00013031,2]
[422325052,1778824237000,-1211.49745581,0.00012898,2]
[422325040,1778824237000,-2889.71921459,0.00012408,2]
[422325050,1778824237000,-5314.21816371,0.00012893,2]
[422325049,1778824237000,-4437.16183629,0.00012893,2]
[422325044,1778824237000,-534.78447535,0.00012564,2]
[422325048,1778824237000,-150.99,0.00012893,2]
[422325046,1778824237000,-1949.91205313,0.00012728,2]
[422325047,1778824237000,-50.08794687,0.00012728,2]
[422325045,1778824237000,-7541.52632709,0.0001272,2]
[422325051,1778824237000,-413.08997684,0.00012898,2]
[422325122,1778824238000,-500.0,0.00013698,2]
[422325120,1778824238000,-500.0,0.00013698,2]
[422325111,1778824238000,-500.0,0.00013698,2]
[422325107,1778824238000,-372.1626232,0.00013698,2]
[422325099,1778824238000,-500.0,0.00013698,2]
[422325116,1778824238000,-500.0,0.00013698,2]
[422325118,1778824238000,-500.0,0.00013698,2]
[422325104,1778824238000,-500.0,0.00013698,2]
[422325102,1778824238000,-500.0,0.00013698,2]
[422325124,1778824238000,-461.6628529,0.00013698,2]
[422325114,1778824238000,-500.0,0.00013698,2]
[422325130,1778824238000,-500.0,0.00013698,2]
[422325150,1778824238000,-200.0,0.00013699,2]
[422325128,1778824238000,-500.0,0.00013698,2]
[422325132,1778824238000,-500.0,0.00013698,2]
[422325135,1778824238000,-539.25564933,0.00013698,2]
[422325139,1778824238000,-500.0,0.00013698,2]
[422325137,1778824238000,-500.0,0.00013698,2]
[422325143,1778824238000,-427.88,0.00013698,2]
[422325141,1778824238000,-500.0,0.00013698,2]
[422325148,1778824238000,-154.34,0.00013699,2]
[422325146,1778824238000,-2500.0,0.00013699,2]
[422325156,1778824238000,-166.66,0.00013836,2]
[422325152,1778824238000,-166.66,0.00013699,2]
[422325095,1778824238000,-500.0,0.00013698,2]
[422325126,1778824238000,-500.0,0.00013698,2]
[422325091,1778824238000,-500.0,0.00013698,2]
[422325154,1778824238000,-3271.26657962,0.00013699,2]
[422325093,1778824238000,-500.0,0.00013698,2]
[422325056,1778824238000,-558.69530798,0.00013031,2]
[422325057,1778824238000,-502.0,0.00013233,2]
[422325064,1778824238000,-150.0,0.00013488,2]
[422325058,1778824238000,-255.0,0.0001328,2]
[422325059,1778824238000,-3271.26657962,0.00013298,2]
[422325060,1778824238000,-7541.52632709,0.00013343,2]
[422325062,1778824238000,-150.0,0.00013488,2]
[422325061,1778824238000,-150.0,0.00013488,2]
[422325063,1778824238000,-150.1563238,0.00013488,2]
[422325074,1778824238000,-320.0,0.00013589,2]
[422325065,1778824238000,-150.0,0.00013488,2]
[422325072,1778824238000,-303.44282568,0.00013507,2]
[422325080,1778824238000,-29499.2173921,0.00013607,2]
[422325067,1778824238000,-150.00000001,0.00013488,2]
[422325066,1778824238000,-150.0,0.00013488,2]
[422325069,1778824238000,-150.0,0.00013488,2]
[422325070,1778824238000,-150.0,0.00013488,2]
[422325071,1778824238000,-558.69530798,0.00013499,2]
[422325068,1778824238000,-150.0,0.00013488,2]
[422325073,1778824238000,-180.27312146,0.00013546,2]
[422325078,1778824238000,-798855.725304,0.00013607,2]
[422325086,1778824238000,-587.47438535,0.00013698,2]
[422325088,1778824238000,-500.0,0.00013698,2]
[422325084,1778824238000,-500.0,0.00013698,2]
[422325082,1778824238000,-7541.52632709,0.00013654,2]
[422325097,1778824238000,-500.0,0.00013698,2]
[422325076,1778824238000,-5390.2710418,0.00013607,2]
[422325168,1778824238000,-166.66,0.0001411,2]
[422325219,1778824238000,-150.0,0.00014237,2]
[422325162,1778824238000,-166.66,0.00013973,2]
[422325224,1778824238000,-7541.52632709,0.00014277,2]
[422325222,1778824238000,-166.66,0.00014247,2]
[422325244,1778824238000,-500.0,0.00014789,2]
[422325232,1778824238000,-3271.26657962,0.000145,2]
[422325235,1778824238000,-5091.72514581,0.0001451,2]
[422325246,1778824238000,-205.94293675,0.00014789,2]
[422325239,1778824238000,-500.0,0.00014789,2]
[422325237,1778824238000,-7541.52632709,0.00014589,2]
[422325241,1778824238000,-151.0,0.00014789,2]
[422325252,1778824238000,-151.0,0.00014789,2]
[422325248,1778824238000,-151.0,0.00014789,2]
[422325250,1778824238000,-500.0,0.00014789,2]
[422325230,1778824238000,-433.0,0.00014463,2]
[422325254,1778824238000,-500.0,0.00014789,2]
[422325257,1778824238000,-500.0,0.00014789,2]
[422325259,1778824238000,-500.0,0.00014789,2]
[422325269,1778824238000,-151.0,0.00014789,2]
[422325268,1778824238000,-500.0,0.00014789,2]
[422325261,1778824238000,-500.0,0.00014789,2]
[422325260,1778824238000,-151.0,0.00014789,2]
[422325266,1778824238000,-151.0,0.00014789,2]
[422325264,1778824238000,-500.0,0.00014789,2]
[422325262,1778824238000,-151.0,0.00014789,2]
[422325271,1778824238000,-500.0,0.00014789,2]
[422325272,1778824238000,-151.0,0.00014789,2]
[422325166,1778824238000,-3271.26657962,0.00014099,2]
[422325256,1778824238000,-151.0,0.00014789,2]
[422325228,1778824238000,-558.69530798,0.00014433,2]
[422325258,1778824238000,-151.0,0.00014789,2]
[422325211,1778824238000,-500.0,0.0001419,2]
[422325226,1778824238000,-166.66,0.00014384,2]
[422325175,1778824238000,-500.0,0.0001419,2]
[422325164,1778824238000,-250.0,0.00014,2]
[422325158,1778824238000,-7541.52632709,0.00013966,2]
[422325160,1778824238000,-558.69530798,0.00013966,2]
[422325173,1778824238000,-150.0,0.0001419,2]
[422325171,1778824238000,-2000.0,0.00014142,2]
[422325179,1778824238000,-500.0,0.0001419,2]
[422325192,1778824238000,-500.0,0.0001419,2]
[422325181,1778824238000,-152.1154947,0.0001419,2]
[422325195,1778824238000,-500.0,0.0001419,2]
[422325188,1778824238000,-500.0,0.0001419,2]
[422325186,1778824238000,-500.0,0.0001419,2]
[422325177,1778824238000,-150.0,0.0001419,2]
[422325183,1778824238000,-500.0,0.0001419,2]
[422325215,1778824238000,-439.10728653,0.0001419,2]
[422325197,1778824238000,-500.0,0.0001419,2]
[422325213,1778824238000,-500.0,0.0001419,2]
[422325209,1778824238000,-500.0,0.0001419,2]
[422325217,1778824238000,-303.44282566,0.00014204,2]
[422325207,1778824238000,-500.0,0.0001419,2]
[422325275,1778824238000,-500.0,0.00014789,2]
[422325205,1778824238000,-500.0,0.0001419,2]
[422325203,1778824238000,-531.51017441,0.0001419,2]
[422325201,1778824238000,-520.53619171,0.0001419,2]
[422325199,1778824238000,-500.0,0.0001419,2]
[422325190,1778824238000,-500.0,0.0001419,2]
[422325333,1778824239000,-151.0,0.00014789,2]
[422325304,1778824239000,-500.0,0.00014789,2]
[422325337,1778824239000,-151.0,0.00014789,2]
[422325314,1778824239000,-500.0,0.00014789,2]
[422325323,1778824239000,-500.0,0.00014789,2]
[422325306,1778824239000,-500.0,0.00014789,2]
[422325325,1778824239000,-151.0,0.00014789,2]
[422325342,1778824239000,-151.0,0.00014789,2]
[422325339,1778824239000,-151.0,0.00014789,2]
[422325329,1778824239000,-500.0,0.00014789,2]
[422325327,1778824239000,-500.0,0.00014789,2]
[422325321,1778824239000,-151.0,0.00014789,2]
[422325320,1778824239000,-311.54619382,0.00014789,2]
[422325298,1778824239000,-500.0,0.00014789,2]
[422325347,1778824239000,-151.0,0.00014789,2]
[422325335,1778824239000,-151.0,0.00014789,2]
[422325317,1778824239000,-500.0,0.00014789,2]
[422325290,1778824239000,-500.0,0.00014789,2]
[422325302,1778824239000,-500.0,0.00014789,2]
[422325344,1778824239000,-151.0,0.00014789,2]
[422325284,1778824239000,-151.0,0.00014789,2]
[422325286,1778824239000,-500.0,0.00014789,2]
[422325288,1778824239000,-151.0,0.00014789,2]
[422325280,1778824239000,-151.0,0.00014789,2]
[422325292,1778824239000,-500.0,0.00014789,2]
[422325276,1778824239000,-151.0,0.00014789,2]
[422325282,1778824239000,-500.0,0.00014789,2]
[422325278,1778824239000,-500.0,0.00014789,2]
[422325293,1778824239000,-151.0,0.00014789,2]
[422325296,1778824239000,-500.0,0.00014789,2]
[422325310,1778824239000,-500.0,0.00014789,2]
[422325308,1778824239000,-500.0,0.00014789,2]
[422325312,1778824239000,-500.0,0.00014789,2]
[422325315,1778824239000,-151.0,0.00014789,2]
[422325300,1778824239000,-500.0,0.00014789,2]
[422325349,1778824239000,-151.0,0.00014789,2]
[422325331,1778824239000,-151.0,0.00014789,2]
[422325353,1778824239000,-151.0,0.00014789,2]
[422325406,1778824239000,-300.0,0.00014999,2]
[422325410,1778824239000,-300.0,0.00014999,2]
[422325393,1778824239000,-500.0,0.00014959,2]
[422325412,1778824239000,-666.0,0.00014999,2]
[422325408,1778824239000,-300.0,0.00014999,2]
[422325400,1778824239000,-300.0,0.00014999,2]
[422325402,1778824239000,-687.74970495,0.00014999,2]
[422325395,1778824239000,-150.00000045,0.00014986,2]
[422325416,1778824239000,-666.0,0.00014999,2]
[422325414,1778824239000,-300.0,0.00014999,2]
[422325418,1778824239000,-300.0,0.00014999,2]
[422325420,1778824239000,-666.0,0.00014999,2]
[422325423,1778824239000,-11024362.52380187,0.00015,2]
[422325463,1778824239000,-908670.48627988,0.00015,2]
[422325469,1778824239000,195.01024366,0.0001377,7]
[422325404,1778824239000,-300.0,0.00014999,2]
[422325389,1778824239000,-7541.52632709,0.000149,2]
[422325398,1778824239000,-151.0,0.00014997,2]
[422325385,1778824239000,-10381.46537228,0.000149,2]
[422325379,1778824239000,-303.44282566,0.000149,2]
[422325355,1778824239000,-151.0,0.00014789,2]
[422325360,1778824239000,-151.0,0.00014789,2]
[422325364,1778824239000,-151.0,0.00014789,2]
[422325362,1778824239000,-151.0,0.00014789,2]
[422325357,1778824239000,-151.0,0.00014789,2]
[422325366,1778824239000,-151.0,0.00014789,2]
[422325373,1778824239000,-28693.01449677,0.0001485,2]
[422325351,1778824239000,-1798.80895522,0.00014789,2]
[422325383,1778824239000,-2150.35867534,0.000149,2]
[422325371,1778824239000,-151.0,0.00014789,2]
[422325381,1778824239000,-847.66278842,0.000149,2]
[422325472,1778824239000,-687.80234494,0.00015,2]
[422325369,1778824239000,-151.0,0.00014789,2]
[422325375,1778824239000,-260.03784911,0.0001485,2]
[422325392,1778824239000,-558.69530798,0.000149,2]
[422325387,1778824239000,-3271.26657962,0.000149,2]
[422325377,1778824239000,-190.69280232,0.000149,2]
[422325894,1778824243000,-38453.08780726,0.00015,2]
[422325895,1778824243000,-306.32323681,0.00015,2]
[422325893,1778824243000,-9270.6144,0.00015,2]
[422325892,1778824243000,-1820.06545604,0.00015,2]
[422325910,1778824247000,-80415.41784911,0.00015,2]
[422325909,1778824247000,-1123.73350908,0.00015,2]
[422325911,1778824247000,-973.57817663,0.00015,2]
[422325912,1778824247000,-61950.62467027,0.00015,2]
[422325919,1778824274000,-8990.4691,0.00012097,2]
[422325920,1778824320000,-152.0,0.00012096,2]
[422325921,1778824321000,-152.0,0.00012096,2]
[422325922,1778824322000,-152.0,0.00012096,2]
[422325923,1778824389000,158.0,0.000301,120]
[422325924,1778824390000,158.0,0.000301,120]
[422325925,1778824393000,158.0,0.000301,120]
[422325928,1778824401000,500.0,0.00029861,120]
[422325927,1778824401000,500.0,0.00028728,120]
[422325926,1778824401000,500.0,0.00027595,120]
[422325929,1778824421000,500.0,0.00029452,120]
[422325930,1778824471000,161.5,0.000301,120]
[422325931,1778824496000,175.81,7.444e-05,2]
[422325932,1778824521000,181.65,0.00030137,120]
[422325933,1778824723000,500.0,0.0003013,120]
[422325934,1778824746000,550.0,0.0003013,120]
[422325935,1778824780000,156.0,0.00030137,120]
[422325936,1778824851000,152.0,6.567e-05,2]
[422325938,1778824858000,630.80059831,0.00029665,120]
[422325937,1778824858000,500.0,0.00027999,120]
[422325939,1778824876000,6719.0,0.0003013,120]
[422325940,1778824883000,1000.0,0.00030136,120]
[422325941,1778824927000,1000.0,0.0003013,120]
[422325945,1778824946000,740.61,0.00030129,120]
[422325944,1778824946000,740.61,0.00029999,120]
[422325943,1778824946000,740.61,0.00029665,120]
[422325942,1778824946000,740.61,0.00027999,120]
[422325946,1778824947000,740.61,0.00030129,120]
[422325947,1778824948000,740.61,0.00030129,120]
[422325949,1778824948000,740.65,0.00030129,120]
[422325948,1778824948000,740.61,0.00030129,120]
[422325950,1778824996000,500.0,0.00028452,120]
[422325951,1778824997000,500.0,0.00029661,120]
[422325956,1778825137000,176.87,0.00028973,120]
[422325958,1778825151000,152.0,6.566e-05,2]
[422325960,1778825250000,523.31,0.00029867,120]
[422325959,1778825250000,523.31,0.00028053,120]
[422325964,1778825251000,523.31,0.00030129,120]
[422325963,1778825251000,523.31,0.00030129,120]
[422325962,1778825251000,523.31,0.00030129,120]
[422325961,1778825251000,523.31,0.00029999,120]
[422325966,1778825252000,523.47364503,0.00030129,120]
[422325965,1778825252000,523.31,0.00030129,120]
[422325967,1778825264000,896.77,0.00028053,120]
[422325968,1778825265000,896.77,0.00029867,120]
[422325970,1778825265000,896.77,0.00030129,120]
[422325971,1778825265000,896.77,0.00030129,120]
[422325969,1778825265000,896.77,0.00029999,120]
[422325974,1778825266000,896.98893862,0.00030129,120]
[422325973,1778825266000,896.77,0.00030129,120]
[422325972,1778825266000,896.77,0.00030129,120]
[422325977,1778825312000,175.81,7.443e-05,2]
[422325976,1778825312000,175.81,5.637e-05,2]
[422325978,1778825316000,3289.13,0.00030137,120]
[422325980,1778825431000,-157.97,9.078e-05,2]
[422325981,1778825431000,-175.81,9.248e-05,2]
[422325983,1778825431000,-150.0,9.804e-05,2]
[422325982,1778825431000,-150.0,9.804e-05,2]
[422325985,1778825431000,-86.18554673,9.985e-05,2]
[422325984,1778825431000,-163.81445327,9.985e-05,2]
[422325988,1778825431000,-300.0,0.00010698,2]
[422325987,1778825431000,-214.7464576,0.00010599,2]
[422325990,1778825431000,-378.71365915,0.00010698,2]
[422325993,1778825431000,-300.0,0.00010698,2]
[422325991,1778825431000,-638.34053726,0.00010698,2]
[422325989,1778825431000,-14.77957144,0.00010698,2]
[422325992,1778825431000,-168.16623215,0.00010698,2]
[422325986,1778825431000,-150.0,0.0001,2]
[422325996,1778825432000,-167.24,0.00010963,2]
[422325994,1778825432000,-10222.28408891,0.00010699,2]
[422325995,1778825432000,-208.39,0.00010699,2]
[422325998,1778825432000,-377.0,0.00011193,2]
[422325997,1778825432000,-175.81,0.00011053,2]
[422326000,1778825432000,-377.0,0.00011473,2]
[422325999,1778825432000,-150.0,0.00011325,2]
[422326001,1778825432000,-238.66,0.00011526,2]
[422326010,1778825432000,-71168.1844728,0.00011897,2]
[422326002,1778825432000,-377.0,0.00011753,2]
[422326003,1778825432000,-420.0,0.0001176,2]
[422326005,1778825432000,-1680.0,0.00011768,2]
[422326006,1778825432000,-17456.27613345,0.00011897,2]
[422326009,1778825432000,-292.97700002,0.00011897,2]
[422326004,1778825432000,-150.79,0.00011767,2]
[422326013,1778825437000,-785.90395936,0.00011896,2]
[422326014,1778825437000,-6515.51576238,0.00011897,2]
[422326015,1778825437000,-680692.00933135,0.00011897,2]
[422326018,1778825437000,-774.69244979,0.00011986,2]
[422326017,1778825437000,-176.0,0.00011973,2]
[422326019,1778825437000,-150.0,0.00011995,2]
[422326020,1778825437000,-1460863.33,0.00011996,2]
[422326016,1778825437000,-166.23,0.00011931,2]
[422326022,1778825437000,-2000.0,0.00011997,2]
[422326024,1778825437000,-5000.0,0.00011997,2]
[422326023,1778825437000,-29625.152,0.00011997,2]
[422326027,1778825437000,-464.52368875,0.00012096,2]
[422326025,1778825437000,-42052.93704792,0.00012015,2]
[422326026,1778825437000,-377.0,0.00012033,2]
[422326028,1778825437000,-500.0,0.00012096,2]
[422326021,1778825437000,-16684.49823874,0.00011996,2]
[422326072,1778825438000,-16684.49823871,0.00012641,2]
[422326073,1778825438000,-42052.93704783,0.00012656,2]
[422326071,1778825438000,-150.79,0.00012503,2]
[422326063,1778825438000,-377.0,0.00012312,2]
[422326064,1778825438000,-16684.49823871,0.00012319,2]
[422326065,1778825438000,-176.87,0.00012329,2]
[422326070,1778825438000,-500.0,0.00012462,2]
[422326061,1778825438000,-208.38824723,0.00012259,2]
[422326069,1778825438000,-166.23,0.00012423,2]
[422326067,1778825438000,-42052.93704783,0.00012336,2]
[422326077,1778825438000,-2351.0,0.00012945,2]
[422326068,1778825438000,-304.58,0.00012371,2]
[422326075,1778825438000,-166.23,0.00012915,2]
[422326094,1778825438000,-42052.93704783,0.00013297,2]
[422326076,1778825438000,-587.0,0.00012926,2]
[422326081,1778825438000,-500.0,0.0001301,2]
[422326086,1778825438000,-150.79,0.00013238,2]
[422326082,1778825438000,-255.0,0.00013074,2]
[422326080,1778825438000,-307.9,0.00012987,2]
[422326078,1778825438000,-16684.49823871,0.00012964,2]
[422326084,1778825438000,-150.0,0.00013211,2]
[422326088,1778825438000,-500.0,0.00013284,2]
[422326090,1778825438000,-16684.49823871,0.00013287,2]
[422326092,1778825438000,-2000.0,0.00013297,2]
[422326066,1778825438000,-167.24,0.00012334,2]
[422326105,1778825438000,-500.70280518,0.00013633,2]
[422326103,1778825438000,-16684.49823871,0.00013609,2]
[422326099,1778825438000,-1000.0,0.000135,2]
[422326079,1778825438000,-42052.93704783,0.00012977,2]
[422326062,1778825438000,-214.997284,0.00012259,2]
[422326048,1778825438000,-500.0,0.00012096,2]
[422326060,1778825438000,-150.0,0.00012255,2]
[422326029,1778825438000,-311.07666925,0.00012096,2]
[422326030,1778825438000,-500.0,0.00012096,2]
[422326033,1778825438000,-500.0,0.00012096,2]
[422326034,1778825438000,-500.0,0.00012096,2]
[422326032,1778825438000,-500.0,0.00012096,2]
[422326031,1778825438000,-500.0,0.00012096,2]
[422326036,1778825438000,-500.0,0.00012096,2]
[422326041,1778825438000,-500.0,0.00012096,2]
[422326040,1778825438000,-500.0,0.00012096,2]
[422326039,1778825438000,-500.0,0.00012096,2]
[422326037,1778825438000,-500.0,0.00012096,2]
[422326035,1778825438000,-500.0,0.00012096,2]
[422326038,1778825438000,-500.0,0.00012096,2]
[422326043,1778825438000,-449.21039695,0.00012096,2]
[422326059,1778825438000,-150.0,0.00012255,2]
[422326044,1778825438000,-500.0,0.00012096,2]
[422326046,1778825438000,-500.0,0.00012096,2]
[422326045,1778825438000,-500.0,0.00012096,2]
[422326047,1778825438000,-500.0,0.00012096,2]
[422326056,1778825438000,-672.0,0.00012097,5]
[422326097,1778825438000,-196.7,0.00013484,2]
[422326049,1778825438000,-500.0,0.00012096,2]
[422326054,1778825438000,-500.0,0.00012096,2]
[422326051,1778825438000,-500.0,0.00012096,2]
[422326053,1778825438000,-500.0,0.00012096,2]
[422326052,1778825438000,-500.0,0.00012096,2]
[422326050,1778825438000,-500.0,0.00012096,2]
[422326055,1778825438000,-500.0,0.00012096,2]
[422326058,1778825438000,-488.51750378,0.00012194,2]
[422326057,1778825438000,-500.0,0.00012188,2]
[422326042,1778825438000,-500.0,0.00012096,2]
[422326096,1778825438000,-166.23,0.00013407,2]
[422326074,1778825438000,-500.0,0.00012736,2]
[422326102,1778825438000,-285.34519104,0.00013569,2]
[422326139,1778825438000,-500.0,0.00013698,2]
[422326140,1778825438000,-500.0,0.00013698,2]
[422326141,1778825438000,-500.0,0.00013698,2]
[422326144,1778825438000,-500.0,0.00013698,2]
[422326143,1778825438000,-500.0,0.00013698,2]
[422326145,1778825438000,-500.0,0.00013698,2]
[422326142,1778825438000,-500.0,0.00013698,2]
[422326146,1778825438000,-500.0,0.00013698,2]
[422326147,1778825438000,-500.0,0.00013698,2]
[422326149,1778825438000,-500.0,0.00013698,2]
[422326148,1778825438000,-500.0,0.00013698,2]
[422326153,1778825438000,-500.0,0.00013698,2]
[422326150,1778825438000,-500.0,0.00013698,2]
[422326157,1778825438000,-500.0,0.00013698,2]
[422326137,1778825438000,-500.0,0.00013698,2]
[422326158,1778825438000,-740.61,0.00013698,2]
[422326159,1778825438000,-740.61,0.00013698,2]
[422326151,1778825438000,-500.0,0.00013698,2]
[422326152,1778825438000,-500.0,0.00013698,2]
[422326154,1778825438000,-500.0,0.00013698,2]
[422326155,1778825438000,-500.0,0.00013698,2]
[422326162,1778825438000,-740.61,0.00013698,2]
[422326160,1778825438000,-740.61,0.00013698,2]
[422326163,1778825438000,-740.61,0.00013698,2]
[422326161,1778825438000,-740.61,0.00013698,2]
[422326168,1778825438000,-817.62,0.00013698,2]
[422326166,1778825438000,-817.62,0.00013698,2]
[422326165,1778825438000,-817.62,0.00013698,2]
[422326164,1778825438000,-817.62,0.00013698,2]
[422326101,1778825438000,-500.0,0.00013558,2]
[422326156,1778825438000,-500.0,0.00013698,2]
[422326138,1778825438000,-500.0,0.00013698,2]
[422326167,1778825438000,-817.62,0.00013698,2]
[422326134,1778825438000,-500.0,0.00013698,2]
[422326104,1778825438000,-42052.93704783,0.00013618,2]
[422326107,1778825438000,-500.0,0.00013698,2]
[422326106,1778825438000,-500.0,0.00013698,2]
[422326108,1778825438000,-500.0,0.00013698,2]
[422326109,1778825438000,-500.0,0.00013698,2]
[422326112,1778825438000,-358.43128137,0.00013698,2]
[422326118,1778825438000,-500.0,0.00013698,2]
[422326111,1778825438000,-500.0,0.00013698,2]
[422326136,1778825438000,-500.0,0.00013698,2]
[422326116,1778825438000,-500.0,0.00013698,2]
[422326110,1778825438000,-500.0,0.00013698,2]
[422326114,1778825438000,-309.02129379,0.00013698,2]
[422326117,1778825438000,-500.0,0.00013698,2]
[422326115,1778825438000,-500.0,0.00013698,2]
[422326120,1778825438000,-500.0,0.00013698,2]
[422326113,1778825438000,-500.0,0.00013698,2]
[422326121,1778825438000,-500.0,0.00013698,2]
[422326119,1778825438000,-456.65215737,0.00013698,2]
[422326135,1778825438000,-500.0,0.00013698,2]
[422326132,1778825438000,-500.0,0.00013698,2]
[422326133,1778825438000,-500.0,0.00013698,2]
[422326129,1778825438000,-500.0,0.00013698,2]
[422326130,1778825438000,-500.0,0.00013698,2]
[422326131,1778825438000,-500.0,0.00013698,2]
[422326127,1778825438000,-501.61257638,0.00013698,2]
[422326125,1778825438000,-500.0,0.00013698,2]
[422326126,1778825438000,-521.18978951,0.00013698,2]
[422326124,1778825438000,-500.0,0.00013698,2]
[422326123,1778825438000,-500.0,0.00013698,2]
[422326122,1778825438000,-500.0,0.00013698,2]
[422326128,1778825438000,-500.0,0.00013698,2]
[422326211,1778825439000,-500.0,0.00013698,2]
[422326213,1778825439000,-500.0,0.00013698,2]
[422326214,1778825439000,-500.0,0.00013698,2]
[422326215,1778825439000,-500.0,0.00013698,2]
[422326212,1778825439000,-500.0,0.00013698,2]
[422326208,1778825439000,-500.0,0.00013698,2]
[422326203,1778825439000,-896.77,0.00013698,2]
[422326210,1778825439000,-500.0,0.00013698,2]
[422326207,1778825439000,-500.0,0.00013698,2]
[422326206,1778825439000,-500.0,0.00013698,2]
[422326205,1778825439000,-500.0,0.00013698,2]
[422326204,1778825439000,-896.77,0.00013698,2]
[422326209,1778825439000,-500.0,0.00013698,2]
[422326216,1778825439000,-500.0,0.00013698,2]
[422326231,1778825439000,-642.29736269,0.00013698,2]
[422326218,1778825439000,-500.0,0.00013698,2]
[422326225,1778825439000,-500.0,0.00013698,2]
[422326220,1778825439000,-500.0,0.00013698,2]
[422326217,1778825439000,-500.0,0.00013698,2]
[422326223,1778825439000,-500.0,0.00013698,2]
[422326221,1778825439000,-500.0,0.00013698,2]
[422326224,1778825439000,-527.38709912,0.00013698,2]
[422326222,1778825439000,-500.0,0.00013698,2]
[422326226,1778825439000,-500.0,0.00013698,2]